fUST/lending_fUST_20241205
["ID","MTS","AMOUNT","RATE_DAILY","PERIOD"]
[344327909,1733346648243,-1548.62197702,0.00025942,2]
[344327910,1733346648253,-4096.19296465,0.00025999,2]
[344327911,1733346648263,-139971.46394167,0.00026,2]
[344327912,1733346648408,-39874.01603013,0.00026,2]
[344327913,1733346648419,-511.63531746,0.00026,2]
[344327914,1733346648429,-274.18043902,0.00026,5]
[344327915,1733346648440,-2577.14638238,0.00026,3]
[344327916,1733346648450,-2664.72959304,0.00026003,2]
[344327917,1733346648460,-160.0,0.00026026,2]
[344327918,1733346648470,-151.0,0.00026027,7]
[344327919,1733346648479,-169.136989,0.00026027,7]
[344327920,1733346648494,-169.136989,0.00026027,7]
[344327921,1733346648504,-151.0,0.00026027,7]
[344327922,1733346648514,-290.550601,0.00026027,7]
[344327923,1733346648523,-298.306005,0.00026027,7]
[344327924,1733346648535,-151.0,0.00026027,7]
[344327925,1733346648546,-514.424196,0.00026027,7]
[344327926,1733346648557,-514.424196,0.00026027,7]
[344327927,1733346648567,-154.223238,0.00026027,7]
[344327928,1733346648577,-461.2269056,0.00026027,7]
[344327929,1733346648589,-38.7730944,0.00026027,7]
[344327930,1733346648599,-631.77,0.00026027,7]
[344327931,1733346648609,-334.6129056,0.00026027,7]
[344327932,1733346648689,-192.52568747,0.00026027,7]
[344327933,1733346648704,-151.0,0.00026027,7]
[344327934,1733346648714,-500.0,0.00026027,7]
[344327935,1733346648724,-154.163264,0.00026027,7]
[344327936,1733346648736,-154.163264,0.00026027,7]
[344327937,1733346648746,-500.0,0.00026027,7]
[344327938,1733346648756,-151.0,0.00026027,7]
[344327939,1733346648766,-757.89,0.00026027,7]
[344327940,1733346648776,-500.0,0.00026027,7]
[344327941,1733346648786,-151.0,0.00026027,7]
[344327942,1733346648796,-500.0,0.00026027,7]
[344327943,1733346648806,-377.26509342,0.00026027,7]
[344327944,1733346648815,-586.52,0.00026027,7]
[344327945,1733346648826,-611.22,0.00026027,7]
[344327946,1733346648836,-500.0,0.00026027,7]
[344327947,1733346648846,-933.52,0.00026027,7]
[344327948,1733346648856,-894.4,0.00026027,7]
[344327949,1733346648866,-628.34,0.00026027,7]
[344327950,1733346648876,-500.0,0.00026027,7]
[344327951,1733346648887,-500.0,0.00026027,7]
[344327952,1733346648896,-500.0,0.00026027,7]
[344327953,1733346648906,-500.0,0.00026027,7]
[344327954,1733346648915,-266.18,0.00026027,7]
[344327955,1733346648926,-151.0,0.00026027,7]
[344327956,1733346648935,-530.74,0.00026027,7]
[344327957,1733346648945,-155.075881,0.00026027,7]
[344327958,1733346648954,-155.075881,0.00026027,7]
[344327959,1733346648964,-500.0,0.00026027,7]
[344327960,1733346648973,-500.0,0.00026027,7]
[344327961,1733346648984,-619.85,0.00026027,7]
[344327962,1733346648996,-500.0,0.00026027,7]
[344327963,1733346649005,-1534.56,0.00026027,7]
[344327964,1733346649015,-657.02,0.00026027,7]
[344327965,1733346649026,-391.43768,0.00026027,7]
[344327966,1733346649036,-560.397085,0.00026027,7]
[344327967,1733346649046,-391.43768,0.00026027,7]
[344327968,1733346649061,-560.397085,0.00026027,7]
[344327969,1733346649071,-500.0,0.00026027,7]
[344327970,1733346649081,-550.92799918,0.00026027,7]
[344327971,1733346649091,-500.0,0.00026027,7]
[344327972,1733346649101,-819.96,0.00026027,7]
[344327973,1733346649210,-500.0,0.00026027,7]
[344327974,1733346649221,-553.14,0.00026027,7]
[344327975,1733346649237,-689.42,0.00026027,7]
[344327976,1733346649247,-167.68987152,0.00026027,7]
[344327977,1733346649257,-500.0,0.00026027,7]
[344327978,1733346649267,-500.0,0.00026027,7]
[344327979,1733346649277,-500.0,0.00026027,7]
[344327980,1733346649287,-426.61054173,0.00026027,7]
[344327981,1733346649327,-73.38945827,0.00026027,7]
[344327982,1733346649338,-500.0,0.00026027,7]
[344327983,1733346649348,-500.0,0.00026027,7]
[344327984,1733346649358,-151.18509973,0.00026027,7]
[344327985,1733346649371,-348.81490027,0.00026027,7]
[344327986,1733346649381,-500.0,0.00026027,7]
[344327987,1733346649391,-260.71227172,0.00026027,7]
[344327988,1733346649403,-239.28772828,0.00026027,7]
[344327989,1733346649412,-214.64959194,0.00026027,7]
[344327990,1733346649424,-285.35040806,0.00026027,7]
[344327991,1733346649434,-500.0,0.00026027,7]
[344327992,1733346649444,-500.0,0.00026027,7]
[344327993,1733346649453,-1059.594498,0.00026027,7]
[344327994,1733346649463,-500.0,0.00026027,7]
[344327995,1733346649472,-1059.594498,0.00026027,7]
[344327996,1733346649482,-1348.776728,0.00026027,7]
[344327997,1733346649493,-500.0,0.00026027,7]
[344327998,1733346649504,-1348.776728,0.00026027,7]
[344327999,1733346649514,-952.87,0.00026027,7]
[344328000,1733346649524,-500.0,0.00026027,7]
[344328001,1733346649534,-500.0,0.00026027,7]
[344328002,1733346649544,-500.0,0.00026027,7]
[344328003,1733346649554,-299.363235,0.00026027,7]
[344328004,1733346649565,-299.363235,0.00026027,7]
[344328005,1733346649575,-500.0,0.00026027,7]
[344328006,1733346649585,-500.0,0.00026027,7]
[344328007,1733346649595,-500.0,0.00026027,7]
[344328008,1733346649604,-354.61365215,0.00026027,7]
[344328009,1733346649614,-500.0,0.00026027,7]
[344328010,1733346649624,-333.758566,0.00026027,7]
[344328011,1733346649634,-333.758566,0.00026027,7]
[344328012,1733346649644,-574.26,0.00026027,7]
[344328013,1733346649654,-4805.61,0.00026027,7]
[344328014,1733346649664,-500.0,0.00026027,7]
[344328015,1733346649674,-500.0,0.00026027,7]
[344328016,1733346649684,-1364.96,0.00026027,7]
[344328017,1733346649696,-423.44902352,0.00026027,7]
[344328018,1733346649709,-1957.68,0.00026027,7]
[344328019,1733346649719,-500.0,0.00026027,7]
[344328020,1733346649730,-500.0,0.00026027,7]
[344328021,1733346649745,-3027.51,0.00026027,7]
[344328022,1733346649755,-500.0,0.00026027,7]
[344328023,1733346649765,-500.0,0.00026027,7]
[344328024,1733346649775,-500.0,0.00026027,7]
[344328025,1733346649785,-151.0,0.00026027,7]
[344328026,1733346649795,-695.26,0.00026027,7]
[344328027,1733346649805,-500.0,0.00026027,7]
[344328028,1733346649815,-700.25,0.00026027,7]
[344328029,1733346649825,-1192.1,0.00026027,7]
[344328030,1733346649835,-500.0,0.00026027,7]
[344328031,1733346649844,-500.0,0.00026027,7]
[344328032,1733346649854,-500.0,0.00026027,7]
[344328033,1733346649864,-669.91,0.00026027,7]
[344328034,1733346649875,-500.0,0.00026027,7]
[344328035,1733346649886,-500.0,0.00026027,7]
[344328036,1733346649896,-2295.0,0.00026027,7]
[344328037,1733346649906,-937.42,0.00026027,7]
[344328038,1733346649915,-534.73,0.00026027,7]
[344328039,1733346649925,-1741.07,0.00026027,7]
[344328040,1733346649934,-151.0,0.00026027,7]
[344328041,1733346649944,-286.092668,0.00026027,7]
[344328042,1733346649954,-517.13666207,0.00026027,7]
[344328043,1733346649963,-707.94,0.00026027,7]
[344328044,1733346649973,-1263.48149911,0.00026027,7]
[344328045,1733346649989,-1411.05850089,0.00026027,7]
[344328046,1733346649998,-557.56745209,0.00026027,7]
[344328047,1733346650009,-500.0,0.00026027,7]
[344328048,1733346650018,-500.0,0.00026027,7]
[344328049,1733346650027,-500.0,0.00026027,7]
[344328050,1733346650038,-898.18,0.00026027,7]
[344328051,1733346650047,-500.0,0.00026027,7]
[344328052,1733346650057,-729.85,0.00026027,7]
[344328053,1733346650067,-500.0,0.00026027,7]
[344328054,1733346650076,-936.29,0.00026027,7]
[344328055,1733346650086,-1935.84,0.00026027,7]
[344328056,1733346650096,-1644.69,0.00026027,7]
[344328057,1733346650106,-500.0,0.00026027,7]
[344328058,1733346650115,-865.86,0.00026027,7]
[344328059,1733346650125,-500.0,0.00026027,7]
[344328060,1733346650134,-500.0,0.00026027,7]
[344328061,1733346650144,-509.73,0.00026027,7]
[344328062,1733346650153,-578.32,0.00026027,7]
[344328063,1733346650163,-500.0,0.00026027,7]
[344328064,1733346650175,-500.0,0.00026027,7]
[344328065,1733346650193,-500.0,0.00026027,7]
[344328066,1733346650210,-500.0,0.00026027,7]
[344328067,1733346650225,-13170.42,0.00026027,7]
[344328068,1733346650241,-1521.1,0.00026027,7]
[344328069,1733346650257,-2278.21,0.000261,2]
[344328070,1733346650273,-151.0,0.000261,7]
[344328071,1733346650289,-151.0,0.000261,7]
[344328072,1733346650304,-151.0,0.000261,7]
[344328073,1733346650319,-1348.776728,0.000261,7]
[344328074,1733346650337,-1348.776728,0.000261,7]
[344328075,1733346650350,-151.0,0.000261,7]
[344328076,1733346650364,-6053.75890678,0.000262,7]
[344328077,1733346650379,-151.0,0.000262,7]
[344328078,1733346650395,-151.0,0.000262,11]
[344328079,1733346650408,-155.075881,0.000262,7]
[344328080,1733346650420,-155.075881,0.000262,7]
[344328081,1733346650434,-560.397085,0.000262,7]
[344328082,1733346650447,-560.397085,0.000262,7]
[344328083,1733346650462,-1059.594498,0.000262,7]
[344328084,1733346650477,-1059.594498,0.000262,7]
[344328085,1733346650495,-151.0,0.000262,7]
[344328086,1733346650512,-160.0,0.00026211,3]
[344328087,1733346650528,-1500.0,0.00026222,2]
[344328088,1733346650541,-153.0,0.00026274,2]
[344328089,1733346650553,-153.0,0.00026274,2]
[344328090,1733346650566,-153.0,0.00026274,2]
[344328091,1733346650581,-153.0,0.00026274,2]
[344328092,1733346650598,-153.0,0.00026274,2]
[344328093,1733346650611,-1164.6690845,0.000263,3]
[344328094,1733346650624,-1169.27083333,0.00026301,7]
[344328095,1733346650637,-298.306005,0.00026301,7]
[344328096,1733346650653,-514.424196,0.00026301,7]
[344328097,1733346650665,-514.424196,0.00026301,7]
[344328098,1733346650677,-151.0,0.00026301,7]
[344328099,1733346650691,-151.0,0.00026301,7]
[344328100,1733346650706,-217.555788,0.00026301,7]
[344328101,1733346650718,-500.0,0.00026301,7]
[344328102,1733346650730,-631.77,0.00026301,7]
[344328103,1733346650747,-500.0,0.00026301,7]
[344328104,1733346650759,-154.163264,0.00026301,7]
[344328105,1733346650771,-154.163264,0.00026301,7]
[344328106,1733346650785,-151.0,0.00026301,7]
[344328107,1733346650798,-757.89,0.00026301,7]
[344328108,1733346650811,-500.0,0.00026301,7]
[344328109,1733346650824,-151.0,0.00026301,7]
[344328110,1733346650837,-500.0,0.00026301,7]
[344328111,1733346650851,-586.52,0.00026301,7]
[344328112,1733346650863,-611.22,0.00026301,7]
[344328113,1733346650876,-500.0,0.00026301,7]
[344328114,1733346650888,-933.52,0.00026301,7]
[344328115,1733346650901,-894.4,0.00026301,7]
[344328116,1733346650914,-500.0,0.00026301,7]
[344328117,1733346650927,-500.0,0.00026301,7]
[344328118,1733346650939,-500.0,0.00026301,7]
[344328119,1733346650952,-454.56229785,0.00026301,7]
[344328120,1733346650966,-151.0,0.00026301,7]
[344328121,1733346650978,-530.74,0.00026301,7]
[344328122,1733346650992,-151.0,0.00026301,7]
[344328123,1733346651006,-155.075881,0.00026301,7]
[344328124,1733346651016,-155.075881,0.00026301,7]
[344328125,1733346651026,-500.0,0.00026301,7]
[344328126,1733346651036,-500.0,0.00026301,7]
[344328127,1733346651045,-619.85,0.00026301,7]
[344328128,1733346651055,-500.0,0.00026301,7]
[344328129,1733346651064,-1534.56,0.00026301,7]
[344328130,1733346651074,-657.02,0.00026301,7]
[344328131,1733346651083,-391.43768,0.00026301,7]
[344328132,1733346651092,-560.397085,0.00026301,7]
[344328133,1733346651101,-391.43768,0.00026301,7]
[344328134,1733346651111,-560.397085,0.00026301,7]
[344328135,1733346651121,-500.0,0.00026301,7]
[344328136,1733346651130,-500.0,0.00026301,7]
[344328137,1733346651141,-500.0,0.00026301,7]
[344328138,1733346651151,-819.96,0.00026301,7]
[344328139,1733346651160,-553.14,0.00026301,7]
[344328140,1733346651170,-689.42,0.00026301,7]
[344328141,1733346651179,-478.87759934,0.00026301,7]
[344328142,1733346651189,-500.0,0.00026301,7]
[344328143,1733346651199,-500.0,0.00026301,7]
[344328144,1733346651208,-500.0,0.00026301,7]
[344328145,1733346651217,-500.0,0.00026301,7]
[344328146,1733346651227,-297.93957789,0.00026301,7]
[344328147,1733346651239,-500.0,0.00026301,7]
[344328148,1733346651250,-500.0,0.00026301,7]
[344328149,1733346651260,-500.0,0.00026301,7]
[344328150,1733346651269,-500.0,0.00026301,7]
[344328151,1733346651280,-500.0,0.00026301,7]
[344328152,1733346651289,-1059.594498,0.00026301,7]
[344328153,1733346651300,-500.0,0.00026301,7]
[344328154,1733346651310,-1059.594498,0.00026301,7]
[344328155,1733346651320,-1348.776728,0.00026301,7]
[344328156,1733346651531,-434.16225386,0.00026301,7]
[344328157,1733346651555,-952.87,0.00026301,7]
[344328158,1733346651566,-1348.776728,0.00026301,7]
[344328159,1733346651576,-500.0,0.00026301,7]
[344328160,1733346651586,-500.0,0.00026301,7]
[344328161,1733346651595,-500.0,0.00026301,7]
[344328162,1733346651605,-299.363235,0.00026301,7]
[344328163,1733346651615,-299.363235,0.00026301,7]
[344328164,1733346651625,-500.0,0.00026301,7]
[344328165,1733346651635,-558.61646343,0.00026301,7]
[344328166,1733346651645,-500.0,0.00026301,7]
[344328167,1733346651654,-500.0,0.00026301,7]
[344328168,1733346651664,-333.758566,0.00026301,7]
[344328169,1733346651674,-333.758566,0.00026301,7]
[344328170,1733346651684,-574.26,0.00026301,7]
[344328171,1733346651696,-4805.61,0.00026301,7]
[344328172,1733346651706,-500.0,0.00026301,7]
[344328173,1733346651715,-500.0,0.00026301,7]
[344328174,1733346651725,-1364.96,0.00026301,7]
[344328175,1733346651739,-1957.68,0.00026301,7]
[344328176,1733346651749,-500.0,0.00026301,7]
[344328177,1733346651758,-500.0,0.00026301,7]
[344328178,1733346651769,-3027.51,0.00026301,7]
[344328179,1733346651779,-500.0,0.00026301,7]
[344328180,1733346651788,-500.0,0.00026301,7]
[344328181,1733346651797,-151.0,0.00026301,7]
[344328182,1733346651807,-695.26,0.00026301,7]
[344328183,1733346651816,-500.0,0.00026301,7]
[344328184,1733346651827,-700.25,0.00026301,7]
[344328185,1733346651836,-1192.1,0.00026301,7]
[344328186,1733346651846,-500.0,0.00026301,7]
[344328187,1733346651856,-500.0,0.00026301,7]
[344328188,1733346651867,-500.0,0.00026301,7]
[344328189,1733346651877,-669.91,0.00026301,7]
[344328190,1733346651887,-500.0,0.00026301,7]
[344328191,1733346651896,-500.0,0.00026301,7]
[344328192,1733346651905,-2295.0,0.00026301,7]
[344328193,1733346651915,-937.42,0.00026301,7]
[344328194,1733346651924,-534.73,0.00026301,7]
[344328195,1733346651933,-1741.07,0.00026301,7]
[344328196,1733346651943,-151.0,0.00026301,7]
[344328197,1733346651953,-707.94,0.00026301,7]
[344328198,1733346651963,-2674.54,0.00026301,7]
[344328199,1733346651972,-454.5589316,0.00026301,7]
[344328200,1733346651982,-500.0,0.00026301,7]
[344328201,1733346651995,-500.0,0.00026301,7]
[344328202,1733346652004,-898.18,0.00026301,7]
[344328203,1733346652014,-500.0,0.00026301,7]
[344328204,1733346652023,-729.85,0.00026301,7]
[344328205,1733346652032,-500.0,0.00026301,7]
[344328206,1733346652042,-936.29,0.00026301,7]
[344328207,1733346652052,-1935.84,0.00026301,7]
[344328208,1733346652061,-1644.69,0.00026301,7]
[344328209,1733346652071,-308.10047009,0.00026301,7]
[344328210,1733346652081,-865.86,0.00026301,7]
[344328211,1733346652090,-500.0,0.00026301,7]
[344328212,1733346652099,-500.0,0.00026301,7]
[344328213,1733346652109,-509.73,0.00026301,7]
[344328214,1733346652118,-578.32,0.00026301,7]
[344328215,1733346652128,-500.0,0.00026301,7]
[344328216,1733346652137,-500.0,0.00026301,7]
[344328217,1733346652146,-500.0,0.00026301,7]
[344328218,1733346652156,-454.45226495,0.00026301,7]
[344328219,1733346652165,-13170.42,0.00026301,7]
[344328220,1733346652175,-1521.1,0.00026301,7]
[344328221,1733346652184,-500.0,0.00026373,2]
[344328222,1733346652194,-500.0,0.00026373,2]
[344328223,1733346652204,-161.49333786,0.00026373,2]
[344328224,1733346652213,-308.8081538,0.00026384,2]
[344328225,1733346652223,-469.8182561,0.00026384,2]
[344328226,1733346652232,-229765.07672347,0.000264,7]
[344328227,1733346652249,-14069.14583317,0.000264,7]
[344328228,1733346652260,-30098.10904093,0.000264,7]
[344328229,1733346838505,295.160751,0.00013973,2]
[344328234,1733347468329,280.402713,0.00013973,2]
[344328235,1733347487176,279.24,0.00027,30]
[344328236,1733347591121,-221.78307097,0.0002,3]
[344328321,1733347831846,-1161.4664828,0.000199,2]
[344328323,1733347831856,-300.0,0.00019989,2]
[344328325,1733347831865,-300.0,0.00019989,2]
[344328327,1733347831875,-172917.71320706,0.0001999,2]
[344328329,1733347831885,-374.21692903,0.0002,3]
[344328331,1733347831895,-595.0,0.0002,3]
[344328333,1733347831905,-595.0,0.0002,3]
[344328335,1733347831915,-595.0,0.0002,3]
[344328337,1733347831924,-6824.12914799,0.0002,2]
[344328339,1733347831934,-55127.85889832,0.00020377,2]
[344328341,1733347831943,-280.402713,0.00020447,2]
[344328343,1733347831952,-1161.46648276,0.00021186,2]
[344328345,1733347831964,-420.0,0.00021766,2]
[344328348,1733347831974,-420.0,0.00021988,2]
[344328351,1733347831983,-25697.23260801,0.00022,2]
[344328352,1733347831992,-1161.46648276,0.00022471,2]
[344328354,1733347832002,-24900.0,0.00023033,2]
[344328356,1733347832012,-343.513013,0.0002335,2]
[344328358,1733347832021,-168.876398,0.00023451,2]
[344328360,1733347832031,-402.2449508,0.000236,2]
[344328362,1733347832040,-587.0,0.00023701,2]
[344328364,1733347832054,-1161.46648276,0.00023757,2]
[344328366,1733347832063,-2531.09766597,0.00024,2]
[344328367,1733347832074,-587.0,0.00024187,2]
[344328368,1733347832084,-666.0,0.00024557,2]
[344328370,1733347832094,-500.0,0.00024651,2]
[344328372,1733347832103,-500.0,0.00024651,2]
[344328373,1733347832112,-500.0,0.00024651,2]
[344328375,1733347832123,-500.0,0.00024651,2]
[344328377,1733347832133,-500.0,0.00024651,2]
[344328378,1733347832142,-500.0,0.00024651,2]
[344328380,1733347832152,-500.0,0.00024651,2]
[344328382,1733347832161,-500.0,0.00024651,2]
[344328383,1733347832171,-500.0,0.00024651,2]
[344328384,1733347832180,-500.0,0.00024651,2]
[344328386,1733347832190,-500.0,0.00024651,2]
[344328388,1733347832199,-500.0,0.00024651,2]
[344328390,1733347832210,-500.0,0.00024651,2]
[344328391,1733347832220,-500.0,0.00024651,2]
[344328392,1733347832230,-500.0,0.00024651,2]
[344328393,1733347832240,-500.0,0.00024651,2]
[344328394,1733347832249,-500.0,0.00024651,2]
[344328395,1733347832259,-500.0,0.00024651,2]
[344328396,1733347832268,-500.0,0.00024651,2]
[344328397,1733347832278,-500.0,0.00024651,2]
[344328398,1733347832288,-500.0,0.00024651,2]
[344328399,1733347832297,-500.0,0.00024651,2]
[344328400,1733347832307,-500.0,0.00024651,2]
[344328401,1733347832316,-500.0,0.00024651,2]
[344328402,1733347832325,-500.0,0.00024651,2]
[344328403,1733347832335,-500.0,0.00024651,2]
[344328404,1733347832344,-500.0,0.00024651,2]
[344328405,1733347832355,-500.0,0.00024651,2]
[344328406,1733347832365,-500.0,0.00024651,2]
[344328407,1733347832374,-500.0,0.00024651,2]
[344328408,1733347832383,-500.0,0.00024651,2]
[344328409,1733347832392,-500.0,0.00024651,2]
[344328410,1733347832402,-500.0,0.00024651,2]
[344328411,1733347832411,-500.0,0.00024651,2]
[344328412,1733347832421,-500.0,0.00024651,2]
[344328413,1733347832430,-500.0,0.00024651,2]
[344328414,1733347832439,-500.0,0.00024651,2]
[344328415,1733347832449,-500.0,0.00024651,2]
[344328416,1733347832461,-500.0,0.00024651,2]
[344328417,1733347832470,-500.0,0.00024651,2]
[344328418,1733347832487,-500.0,0.00024651,2]
[344328419,1733347832496,-500.0,0.00024651,2]
[344328420,1733347832505,-500.0,0.00024651,2]
[344328421,1733347832515,-500.0,0.00024651,2]
[344328422,1733347832524,-500.0,0.00024651,2]
[344328423,1733347832533,-500.0,0.00024651,2]
[344328424,1733347832543,-500.0,0.00024651,2]
[344328425,1733347832553,-500.0,0.00024651,2]
[344328426,1733347832562,-500.0,0.00024651,2]
[344328427,1733347832571,-500.0,0.00024651,2]
[344328428,1733347832581,-500.0,0.00024651,2]
[344328429,1733347832591,-500.0,0.00024651,2]
[344328430,1733347832600,-500.0,0.00024651,2]
[344328431,1733347832610,-380.3434072,0.00024651,2]
[344328432,1733347832619,-500.0,0.00024651,2]
[344328433,1733347832628,-500.0,0.00024651,2]
[344328434,1733347832767,-500.0,0.00024651,2]
[344328435,1733347832779,-500.0,0.00024651,2]
[344328436,1733347832789,-500.0,0.00024651,2]
[344328437,1733347832799,-500.0,0.00024651,2]
[344328438,1733347832809,-500.0,0.00024651,2]
[344328439,1733347832819,-500.0,0.00024651,2]
[344328440,1733347832829,-500.0,0.00024651,2]
[344328441,1733347832840,-500.0,0.00024651,2]
[344328442,1733347832850,-500.0,0.00024651,2]
[344328443,1733347832860,-500.0,0.00024651,2]
[344328444,1733347832870,-500.0,0.00024651,2]
[344328445,1733347832880,-500.0,0.00024651,2]
[344328446,1733347832889,-500.0,0.00024651,2]
[344328447,1733347832899,-500.0,0.00024651,2]
[344328448,1733347832909,-500.0,0.00024651,2]
[344328449,1733347832918,-500.0,0.00024651,2]
[344328450,1733347832930,-500.0,0.00024651,2]
[344328451,1733347832939,-500.0,0.00024651,2]
[344328452,1733347832949,-500.0,0.00024651,2]
[344328453,1733347832963,-500.0,0.00024651,2]
[344328454,1733347832974,-500.0,0.00024651,2]
[344328455,1733347832984,-500.0,0.00024651,2]
[344328456,1733347832993,-500.0,0.00024651,2]
[344328457,1733347833003,-500.0,0.00024651,2]
[344328458,1733347833013,-500.0,0.00024651,2]
[344328459,1733347833023,-500.0,0.00024651,2]
[344328460,1733347833034,-500.0,0.00024651,2]
[344328461,1733347833046,-500.0,0.00024651,2]
[344328462,1733347833058,-500.0,0.00024651,2]
[344328463,1733347833068,-500.0,0.00024651,2]
[344328464,1733347833078,-500.0,0.00024651,2]
[344328465,1733347833089,-500.0,0.00024651,2]
[344328466,1733347833099,-500.0,0.00024651,2]
[344328467,1733347833108,-500.0,0.00024651,2]
[344328468,1733347833117,-500.0,0.00024651,2]
[344328469,1733347833128,-500.0,0.00024651,2]
[344328470,1733347833138,-500.0,0.00024651,2]
[344328471,1733347833148,-500.0,0.00024651,2]
[344328472,1733347833157,-500.0,0.00024651,2]
[344328473,1733347833167,-500.0,0.00024651,2]
[344328474,1733347833177,-500.0,0.00024651,2]
[344328475,1733347833186,-500.0,0.00024651,2]
[344328476,1733347833196,-500.0,0.00024651,2]
[344328477,1733347833210,-500.0,0.00024651,2]
[344328478,1733347833220,-500.0,0.00024651,2]
[344328479,1733347833230,-500.0,0.00024651,2]
[344328480,1733347833240,-500.0,0.00024651,2]
[344328481,1733347833250,-500.0,0.00024651,2]
[344328482,1733347833259,-500.0,0.00024651,2]
[344328483,1733347833269,-500.0,0.00024651,2]
[344328484,1733347833279,-500.0,0.00024651,2]
[344328485,1733347833288,-500.0,0.00024651,2]
[344328486,1733347833298,-500.0,0.00024651,2]
[344328487,1733347833308,-500.0,0.00024651,2]
[344328488,1733347833318,-500.0,0.00024651,2]
[344328489,1733347833328,-500.0,0.00024651,2]
[344328490,1733347833337,-590.88500918,0.00024651,2]
[344328491,1733347833348,-500.0,0.00024651,2]
[344328492,1733347833358,-500.0,0.00024651,2]
[344328493,1733347833367,-500.0,0.00024651,2]
[344328494,1733347833377,-500.0,0.00024651,2]
[344328495,1733347833386,-500.0,0.00024651,2]
[344328496,1733347833396,-500.0,0.00024651,2]
[344328497,1733347833406,-500.0,0.00024651,2]
[344328498,1733347833415,-500.0,0.00024651,2]
[344328499,1733347833425,-500.0,0.00024651,2]
[344328500,1733347833435,-500.0,0.00024651,2]
[344328501,1733347833444,-500.0,0.00024651,2]
[344328502,1733347833455,-500.0,0.00024651,2]
[344328503,1733347833471,-500.0,0.00024651,2]
[344328504,1733347833480,-500.0,0.00024651,2]
[344328505,1733347833490,-500.0,0.00024651,2]
[344328506,1733347833499,-500.0,0.00024651,2]
[344328507,1733347833508,-390.78159832,0.00024651,2]
[344328508,1733347833517,-500.0,0.00024657,7]
[344328509,1733347833526,-500.0,0.00024657,7]
[344328510,1733347833536,-500.0,0.00024657,7]
[344328511,1733347833546,-500.0,0.00024657,7]
[344328512,1733347833555,-500.0,0.00024657,7]
[344328513,1733347833565,-500.0,0.00024657,7]
[344328514,1733347833575,-500.0,0.00024657,7]
[344328515,1733347833585,-744.97,0.00024657,7]
[344328516,1733347833595,-200.0,0.00024657,7]
[344328517,1733347833605,-500.0,0.00024657,7]
[344328518,1733347833615,-516.22328029,0.00024657,7]
[344328519,1733347833624,-604.58074723,0.00024657,7]
[344328520,1733347833636,-500.0,0.00024657,7]
[344328521,1733347833646,-530.79624331,0.00024657,7]
[344328522,1733347833655,-500.0,0.00024657,7]
[344328523,1733347833665,-500.0,0.00024657,7]
[344328524,1733347833674,-500.0,0.00024657,7]
[344328525,1733347833685,-500.0,0.00024657,7]
[344328526,1733347833694,-500.0,0.00024657,7]
[344328527,1733347833704,-500.0,0.00024657,7]
[344328528,1733347833717,-500.0,0.00024657,7]